[Event "FIDE World Rapid Chess Championship 2021"]
[White "Oparin, Grigoriy"]
[Black "Zilka, Stepan"]
[WhiteFideId "24125890"]
[BlackFideId "315303"]
[WhiteElo "2725"]
[BlackElo "2474"]
[Result "1/2-1/2"]
[Round "13"]
[TimeControl "900+10"]
[Date "2021.12.28"]
[WhiteClock "0:05:48"]
[BlackClock "0:02:51"]

1. d4 {[%clk 0:15:00]}  Nf6 {[%clk 0:15:00]} 2. c4 {[%clk 0:15:00]}  e6 {[%clk 0:15:00]} 3. Nf3 {[%clk 0:15:00]}  d5 {[%clk 0:15:00]} 4. g3 {[%clk 0:15:00]}  Be7 {[%clk 0:15:18]} 5. Bg2 {[%clk 0:15:54]}  O-O {[%clk 0:15:18]} 6. Qc2 {[%clk 0:15:54]}  dxc4 {[%clk 0:15:18]} 7. Qxc4 {[%clk 0:15:54]}  a6 {[%clk 0:15:18]} 8. Qc2 {[%clk 0:15:54]}  c5 {[%clk 0:15:18]} 9. dxc5 {[%clk 0:15:54]}  Qa5+ {[%clk 0:15:18]} 10. Bd2 {[%clk 0:15:20]}  Qxc5 {[%clk 0:14:40]} 11. Qxc5 {[%clk 0:15:20]}  Bxc5 {[%clk 0:14:40]} 12. Ne5 {[%clk 0:15:20]}  Nbd7 {[%clk 0:14:40]} 13. Nd3 {[%clk 0:15:20]}  Ba7 {[%clk 0:14:40]} 14. Nc3 {[%clk 0:15:20]}  Re8 {[%clk 0:14:40]} 15. O-O {[%clk 0:15:18]}  e5 {[%clk 0:12:42]} 16. Nb4 {[%clk 0:15:18]}  Nb6 {[%clk 0:12:42]} 17. Bg5 {[%clk 0:14:09]}  a5 {[%clk 0:11:39]} 18. Nd3 {[%clk 0:14:09]}  e4 {[%clk 0:11:36]} 19. Nc5 {[%clk 0:13:04]}  Nc4 {[%clk 0:11:36]} 20. Bxf6 {[%clk 0:13:04]}  Bxc5 {[%clk 0:09:55]} 21. Nxe4 {[%clk 0:10:56]}  Rxe4 {[%clk 0:09:55]} 22. Bxe4 {[%clk 0:10:56]}  gxf6 {[%clk 0:09:13]} 23. Rfc1 {[%clk 0:11:11]}  Be6 {[%clk 0:04:55]} 24. b3 {[%clk 0:11:19]}  Bd4 {[%clk 0:04:55]} 25. bxc4 {[%clk 0:11:19]}  Bxa1 {[%clk 0:04:55]} 26. Rxa1 {[%clk 0:11:19]}  Bxc4 {[%clk 0:04:55]} 27. Bxb7 {[%clk 0:11:19]}  Rb8 {[%clk 0:04:55]} 28. Bf3 {[%clk 0:11:00]}  Rb2 {[%clk 0:03:47]} 29. a3 {[%clk 0:11:00]}  Bxe2 {[%clk 0:03:47]} 30. Bxe2 {[%clk 0:11:00]}  Rxe2 {[%clk 0:03:47]} 31. Rd1 {[%clk 0:11:00]}  Ra2 {[%clk 0:03:47]} 32. Rd3 {[%clk 0:11:00]}  f5 {[%clk 0:03:47]} 33. Kg2 {[%clk 0:11:00]}  Kg7 {[%clk 0:03:47]} 34. Kf3 {[%clk 0:11:00]}  Kg6 {[%clk 0:03:47]} 35. h4 {[%clk 0:11:00]}  h5 {[%clk 0:03:47]} 36. Ke3 {[%clk 0:11:00]}  f4+ {[%clk 0:04:02]} 37. gxf4 {[%clk 0:10:02]}  a4 {[%clk 0:04:02]} 38. f3 {[%clk 0:10:02]}  f6 {[%clk 0:04:02]} 39. Rc3 {[%clk 0:10:02]}  Ra1 {[%clk 0:03:09]} 40. Kf2 {[%clk 0:09:11]}  Ra2+ {[%clk 0:03:09]} 41. Kg3 {[%clk 0:09:11]}  Ra1 {[%clk 0:03:09]} 42. Kf2 {[%clk 0:08:03]}  Ra2+ {[%clk 0:02:43]} 43. Ke3 {[%clk 0:08:03]}  Ra1 {[%clk 0:02:43]} 44. Ke4 {[%clk 0:08:03]}  Re1+ {[%clk 0:02:43]} 45. Kd3 {[%clk 0:08:03]}  Ra1 {[%clk 0:02:43]} 46. Ke3 {[%clk 0:05:48]}  Ra2 {[%clk 0:02:51]} 47. Rd3 {[%clk 0:05:48]} 1/2-1/2


[Site "http://www.Chess.com"]

[Event "FIDE World Rapid Chess Championship 2021"]
[White "Harikrishna, Pentala"]
[Black "Yuffa, Daniil"]
[WhiteFideId "5007003"]
[BlackFideId "24131423"]
[WhiteElo "2705"]
[BlackElo "2514"]
[Result "1-0"]
[Round "13"]
[TimeControl "900+10"]
[Date "2021.12.28"]
[WhiteClock "0:03:29"]
[BlackClock "0:01:03"]

1. e4 {[%clk 0:15:00]}  c6 {[%clk 0:15:00]} 2. Nf3 {[%clk 0:15:00]}  d5 {[%clk 0:15:00]} 3. Nc3 {[%clk 0:15:00]}  Bg4 {[%clk 0:15:00]} 4. h3 {[%clk 0:15:45]}  Bxf3 {[%clk 0:15:46]} 5. Qxf3 {[%clk 0:15:45]}  e6 {[%clk 0:15:46]} 6. Be2 {[%clk 0:15:45]}  Bc5 {[%clk 0:15:46]} 7. O-O {[%clk 0:15:45]}  Ne7 {[%clk 0:15:46]} 8. Na4 {[%clk 0:15:45]}  Bd6 {[%clk 0:15:46]} 9. d4 {[%clk 0:15:45]}  dxe4 {[%clk 0:15:46]} 10. Qxe4 {[%clk 0:15:45]}  Nd7 {[%clk 0:15:46]} 11. c4 {[%clk 0:14:09]}  O-O {[%clk 0:15:38]} 12. Nc3 {[%clk 0:14:09]}  Nf6 {[%clk 0:15:38]} 13. Qd3 {[%clk 0:14:09]}  Nf5 {[%clk 0:14:32]} 14. Rd1 {[%clk 0:13:19]}  h6 {[%clk 0:13:38]} 15. g3 {[%clk 0:12:11]}  Bc7 {[%clk 0:13:38]} 16. Bg4 {[%clk 0:11:13]}  Nd6 {[%clk 0:11:01]} 17. Bf4 {[%clk 0:11:00]}  a6 {[%clk 0:09:20]} 18. b3 {[%clk 0:11:00]}  Rc8 {[%clk 0:09:20]} 19. d5 {[%clk 0:11:00]}  Nxg4 {[%clk 0:09:20]} 20. hxg4 {[%clk 0:11:00]}  exd5 {[%clk 0:09:20]} 21. cxd5 {[%clk 0:11:00]}  c5 {[%clk 0:09:20]} 22. Kg2 {[%clk 0:11:00]}  Qf6 {[%clk 0:09:25]} 23. Na4 {[%clk 0:09:08]}  Bb8 {[%clk 0:09:25]} 24. Rac1 {[%clk 0:08:24]}  Ba7 {[%clk 0:06:13]} 25. Bxd6 {[%clk 0:08:24]}  Qxd6 {[%clk 0:06:13]} 26. Nc3 {[%clk 0:07:47]}  Rfe8 {[%clk 0:06:13]} 27. Ne4 {[%clk 0:07:47]}  Qe5 {[%clk 0:06:13]} 28. Re1 {[%clk 0:07:47]}  Red8 {[%clk 0:06:13]} 29. d6 {[%clk 0:06:53]}  Rc6 {[%clk 0:04:58]} 30. Rcd1 {[%clk 0:06:56]}  b5 {[%clk 0:02:32]} 31. f4 {[%clk 0:06:56]}  Qd4 {[%clk 0:02:32]} 32. Qf3 {[%clk 0:06:56]}  Qb4 {[%clk 0:02:32]} 33. Nf6+ {[%clk 0:03:29]}  gxf6 {[%clk 0:01:03]} 34. Qxc6 {[%clk 0:03:29]} 1-0


[Site "http://www.Chess.com"]

[Event "FIDE World Rapid Chess Championship 2021"]
[White "Michalik, Peter"]
[Black "Smirin, Ilia"]
[WhiteFideId "14907526"]
[BlackFideId "2801990"]
[WhiteElo "2515"]
[BlackElo "2663"]
[Result "0-1"]
[Round "13"]
[TimeControl "900+10"]
[Date "2021.12.28"]
[WhiteClock "0:01:01"]
[BlackClock "0:00:59"]

1. e4 {[%clk 0:15:00]}  c5 {[%clk 0:15:00]} 2. Nf3 {[%clk 0:15:00]}  e6 {[%clk 0:15:00]} 3. d4 {[%clk 0:15:00]}  cxd4 {[%clk 0:15:00]} 4. Nxd4 {[%clk 0:15:00]}  a6 {[%clk 0:16:02]} 5. Bd3 {[%clk 0:16:04]}  Bc5 {[%clk 0:16:02]} 6. Nb3 {[%clk 0:16:04]}  Ba7 {[%clk 0:16:02]} 7. Qe2 {[%clk 0:16:04]}  Nc6 {[%clk 0:16:02]} 8. Be3 {[%clk 0:16:04]}  d6 {[%clk 0:16:02]} 9. O-O {[%clk 0:16:04]}  Nf6 {[%clk 0:16:02]} 10. Rd1 {[%clk 0:16:04]}  e5 {[%clk 0:16:02]} 11. c4 {[%clk 0:16:04]}  Be6 {[%clk 0:16:02]} 12. Nc3 {[%clk 0:16:04]}  Nd7 {[%clk 0:16:02]} 13. Nd5 {[%clk 0:16:04]}  O-O {[%clk 0:16:02]} 14. Rac1 {[%clk 0:16:04]}  Bxe3 {[%clk 0:15:10]} 15. Qxe3 {[%clk 0:15:55]}  b6 {[%clk 0:15:10]} 16. Be2 {[%clk 0:15:55]}  Nc5 {[%clk 0:15:10]} 17. Nd2 {[%clk 0:15:55]}  a5 {[%clk 0:15:10]} 18. h3 {[%clk 0:15:55]}  Ra7 {[%clk 0:15:10]} 19. Nf3 {[%clk 0:15:16]}  Rd7 {[%clk 0:14:51]} 20. Nc3 {[%clk 0:15:16]}  h6 {[%clk 0:14:51]} 21. Rd2 {[%clk 0:15:16]}  f5 {[%clk 0:14:51]} 22. exf5 {[%clk 0:15:16]}  Bxf5 {[%clk 0:14:51]} 23. Rcd1 {[%clk 0:13:55]}  Nb4 {[%clk 0:13:45]} 24. Ne1 {[%clk 0:13:55]}  Nc6 {[%clk 0:13:45]} 25. Bf3 {[%clk 0:13:55]}  Nd4 {[%clk 0:13:45]} 26. Bd5+ {[%clk 0:13:55]}  Kh8 {[%clk 0:13:45]} 27. Nf3 {[%clk 0:12:38]}  Nc2 {[%clk 0:13:32]} 28. Qe2 {[%clk 0:12:14]}  Nb4 {[%clk 0:13:32]} 29. Be4 {[%clk 0:12:14]}  Nxa2 {[%clk 0:13:32]} 30. Nxa2 {[%clk 0:12:14]}  Nxe4 {[%clk 0:13:32]} 31. Nxe5 {[%clk 0:11:42]}  Rc7 {[%clk 0:10:25]} 32. Rd4 {[%clk 0:10:33]}  Qf6 {[%clk 0:08:14]} 33. Nf3 {[%clk 0:10:33]}  Re7 {[%clk 0:08:14]} 34. Re1 {[%clk 0:07:57]}  Rff7 {[%clk 0:08:26]} 35. Qd1 {[%clk 0:07:57]}  Bg6 {[%clk 0:06:37]} 36. Re3 {[%clk 0:07:25]}  Ng5 {[%clk 0:06:37]} 37. Rxe7 {[%clk 0:07:08]}  Nxf3+ {[%clk 0:04:44]} 38. Qxf3 {[%clk 0:07:08]}  Qxe7 {[%clk 0:03:58]} 39. Qd1 {[%clk 0:05:06]}  Rf6 {[%clk 0:03:58]} 40. Nc3 {[%clk 0:05:06]}  Re6 {[%clk 0:03:58]} 41. Qd2 {[%clk 0:05:06]}  Re1+ {[%clk 0:03:58]} 42. Kh2 {[%clk 0:05:06]}  Rf1 {[%clk 0:03:58]} 43. f4 {[%clk 0:05:11]}  Bf5 {[%clk 0:02:51]} 44. Rd5 {[%clk 0:04:19]}  Bxh3 {[%clk 0:01:32]} 45. gxh3 {[%clk 0:04:19]}  Qh4 {[%clk 0:01:32]} 46. Kg2 {[%clk 0:04:19]}  Rxf4 {[%clk 0:01:32]} 47. Qe3 {[%clk 0:04:19]}  Rxc4 {[%clk 0:01:10]} 48. Rxd6 {[%clk 0:01:32]}  Rc5 {[%clk 0:01:10]} 49. Qe8+ {[%clk 0:01:32]}  Kh7 {[%clk 0:01:10]} 50. Qg6+ {[%clk 0:01:32]}  Kh8 {[%clk 0:01:10]} 51. Qe8+ {[%clk 0:01:32]}  Kh7 {[%clk 0:01:10]} 52. Qg6+ {[%clk 0:01:32]}  Kh8 {[%clk 0:01:10]} 53. Nd5 {[%clk 0:01:32]}  Rc8 {[%clk 0:00:59]} 54. Rd7 {[%clk 0:01:01]}  Qd4 {[%clk 0:00:59]} 55. Kg3 {[%clk 0:01:01]}  Qg1+ {[%clk 0:00:59]} 0-1


[Site "http://www.Chess.com"]

[Event "FIDE World Rapid Chess Championship 2021"]
[White "Kovalev, Vladislav"]
[Black "Sadhwani, Raunak"]
[WhiteFideId "13504398"]
[BlackFideId "35093487"]
[WhiteElo "2647"]
[BlackElo "2454"]
[Result "1-0"]
[Round "13"]
[TimeControl "900+10"]
[Date "2021.12.28"]
[WhiteClock "0:08:00"]
[BlackClock "0:12:29"]

1. e4 {[%clk 0:15:00]}  e5 {[%clk 0:15:00]} 2. Nf3 {[%clk 0:15:00]}  Nc6 {[%clk 0:15:00]} 3. Bb5 {[%clk 0:15:00]}  Nge7 {[%clk 0:15:00]} 4. Nc3 {[%clk 0:14:53]}  Ng6 {[%clk 0:15:41]} 5. h4 {[%clk 0:14:53]}  Be7 {[%clk 0:15:41]} 6. h5 {[%clk 0:14:53]}  Nh4 {[%clk 0:15:41]} 7. Nxh4 {[%clk 0:14:53]}  Bxh4 {[%clk 0:15:41]} 8. Bxc6 {[%clk 0:13:35]}  bxc6 {[%clk 0:15:12]} 9. Qg4 {[%clk 0:13:35]}  Bf6 {[%clk 0:15:12]} 10. h6 {[%clk 0:11:34]}  g6 {[%clk 0:15:02]} 11. d3 {[%clk 0:11:34]}  d6 {[%clk 0:15:02]} 12. Qg3 {[%clk 0:11:34]}  O-O {[%clk 0:15:02]} 13. Bd2 {[%clk 0:11:34]}  Be6 {[%clk 0:15:02]} 14. b3 {[%clk 0:11:34]}  Bh8 {[%clk 0:15:02]} 15. O-O {[%clk 0:11:34]}  Qd7 {[%clk 0:15:02]} 16. Rae1 {[%clk 0:11:23]}  Rae8 {[%clk 0:13:53]} 17. Ne2 {[%clk 0:11:23]}  c5 {[%clk 0:14:01]} 18. Bc3 {[%clk 0:08:43]}  f5 {[%clk 0:14:01]} 19. f4 {[%clk 0:08:43]}  fxe4 {[%clk 0:12:29]} 20. dxe4 {[%clk 0:08:00]}  exf4 {[%clk 0:12:29]} 21. Nxf4 {[%clk 0:08:00]}  Bxc3 {[%clk 0:12:29]} 22. Qxc3 {[%clk 0:08:00]}  Qe7 {[%clk 0:12:29]} 23. Nxe6 {[%clk 0:08:00]} 1-0


[Site "http://www.Chess.com"]

[Event "FIDE World Rapid Chess Championship 2021"]
[White "Quparadze, Giga"]
[Black "Heberla, Bartlomiej"]
[WhiteFideId "13602250"]
[BlackFideId "1115120"]
[WhiteElo "2583"]
[BlackElo "2437"]
[Result "1/2-1/2"]
[Round "13"]
[TimeControl "900+10"]
[Date "2021.12.28"]
[WhiteClock "0:16:43"]
[BlackClock "0:06:57"]

1. e4 {[%clk 0:15:00]}  e5 {[%clk 0:15:00]} 2. Nf3 {[%clk 0:15:00]}  Nc6 {[%clk 0:15:00]} 3. Bb5 {[%clk 0:15:00]}  a6 {[%clk 0:15:00]} 4. Ba4 {[%clk 0:15:00]}  d6 {[%clk 0:15:00]} 5. c3 {[%clk 0:15:00]}  Nf6 {[%clk 0:15:56]} 6. d4 {[%clk 0:15:53]}  Bd7 {[%clk 0:15:56]} 7. O-O {[%clk 0:15:53]}  g6 {[%clk 0:15:56]} 8. dxe5 {[%clk 0:15:53]}  Nxe5 {[%clk 0:15:56]} 9. Nxe5 {[%clk 0:15:53]}  dxe5 {[%clk 0:15:56]} 10. Bxd7+ {[%clk 0:15:53]}  Qxd7 {[%clk 0:15:56]} 11. Qf3 {[%clk 0:15:53]}  Qc6 {[%clk 0:15:56]} 12. Re1 {[%clk 0:15:53]}  Bg7 {[%clk 0:13:59]} 13. Bg5 {[%clk 0:16:30]}  O-O {[%clk 0:13:59]} 14. Bxf6 {[%clk 0:16:30]}  Qxf6 {[%clk 0:13:59]} 15. Qe2 {[%clk 0:16:30]}  Rfd8 {[%clk 0:13:59]} 16. Na3 {[%clk 0:16:30]}  Rd7 {[%clk 0:13:59]} 17. Rad1 {[%clk 0:16:30]}  Rad8 {[%clk 0:13:59]} 18. Rxd7 {[%clk 0:16:30]}  Rxd7 {[%clk 0:13:59]} 19. Rd1 {[%clk 0:16:30]}  Qd8 {[%clk 0:13:59]} 20. Rxd7 {[%clk 0:16:30]}  Qxd7 {[%clk 0:13:59]} 21. h4 {[%clk 0:16:30]}  h5 {[%clk 0:13:59]} 22. Nc4 {[%clk 0:16:30]}  b5 {[%clk 0:13:44]} 23. Ne3 {[%clk 0:17:07]}  c6 {[%clk 0:13:44]} 24. b4 {[%clk 0:17:07]}  Bh6 {[%clk 0:13:44]} 25. Nf1 {[%clk 0:17:07]}  Qd8 {[%clk 0:13:44]} 26. g3 {[%clk 0:17:07]}  a5 {[%clk 0:13:44]} 27. a3 {[%clk 0:17:07]}  a4 {[%clk 0:13:44]} 28. c4 {[%clk 0:17:34]}  Qd7 {[%clk 0:11:46]} 29. cxb5 {[%clk 0:17:34]}  cxb5 {[%clk 0:11:46]} 30. Ne3 {[%clk 0:17:34]}  Bxe3 {[%clk 0:11:56]} 31. Qxe3 {[%clk 0:16:05]}  Qd1+ {[%clk 0:11:56]} 32. Kg2 {[%clk 0:16:05]}  Qb3 {[%clk 0:11:56]} 33. Qc1 {[%clk 0:16:05]}  Qd3 {[%clk 0:11:56]} 34. Qc6 {[%clk 0:16:05]}  Kg7 {[%clk 0:08:50]} 35. Qb7 {[%clk 0:16:39]}  Qc4 {[%clk 0:08:50]} 36. Qa8 {[%clk 0:16:39]}  Kh7 {[%clk 0:06:57]} 37. Qb7 {[%clk 0:16:43]}  Kg7 {[%clk 0:06:57]} 38. Qa8 {[%clk 0:16:43]}  Kh7 {[%clk 0:06:57]} 39. Qb7 {[%clk 0:16:43]}  Kg7 {[%clk 0:06:57]} 1/2-1/2


[Site "http://www.Chess.com"]

[Event "FIDE World Rapid Chess Championship 2021"]
[White "Parligras, Mircea-Emilian"]
[Black "Holm, Kristian Stuvik"]
[WhiteFideId "1204297"]
[BlackFideId "1508083"]
[WhiteElo "2550"]
[BlackElo "2409"]
[Result "1-0"]
[Round "13"]
[TimeControl "900+10"]
[Date "2021.12.28"]
[WhiteClock "0:01:53"]
[BlackClock "0:02:56"]

1. d4 {[%clk 0:15:00]}  Nf6 {[%clk 0:15:00]} 2. c4 {[%clk 0:15:00]}  e6 {[%clk 0:15:00]} 3. Nf3 {[%clk 0:15:00]}  d5 {[%clk 0:15:00]} 4. Nc3 {[%clk 0:15:00]}  Be7 {[%clk 0:15:00]} 5. Bf4 {[%clk 0:15:34]}  O-O {[%clk 0:15:23]} 6. a3 {[%clk 0:15:34]}  Nbd7 {[%clk 0:15:23]} 7. Nb5 {[%clk 0:15:34]}  Ne8 {[%clk 0:15:23]} 8. e3 {[%clk 0:15:34]}  a6 {[%clk 0:15:23]} 9. Nc3 {[%clk 0:15:34]}  dxc4 {[%clk 0:15:23]} 10. Bxc4 {[%clk 0:15:34]}  b5 {[%clk 0:15:23]} 11. Be2 {[%clk 0:15:34]}  c5 {[%clk 0:15:23]} 12. dxc5 {[%clk 0:15:34]}  Nxc5 {[%clk 0:15:23]} 13. Qxd8 {[%clk 0:15:34]}  Bxd8 {[%clk 0:15:23]} 14. O-O {[%clk 0:13:11]}  Bb7 {[%clk 0:15:29]} 15. b4 {[%clk 0:13:11]}  Nd7 {[%clk 0:10:54]} 16. Rfd1 {[%clk 0:12:25]}  Nef6 {[%clk 0:10:54]} 17. Bd6 {[%clk 0:12:25]}  Re8 {[%clk 0:10:54]} 18. Rac1 {[%clk 0:09:52]}  Be7 {[%clk 0:11:03]} 19. Bxe7 {[%clk 0:07:32]}  Rxe7 {[%clk 0:07:38]} 20. Nd4 {[%clk 0:07:32]}  Nd5 {[%clk 0:07:38]} 21. Nxd5 {[%clk 0:04:57]}  Bxd5 {[%clk 0:07:38]} 22. Rc7 {[%clk 0:05:33]}  Kf8 {[%clk 0:04:24]} 23. Nc6 {[%clk 0:02:48]}  Bxc6 {[%clk 0:04:28]} 24. Rxc6 {[%clk 0:02:48]}  Ne5 {[%clk 0:04:28]} 25. Rc5 {[%clk 0:02:48]}  Nd7 {[%clk 0:04:28]} 26. Rc3 {[%clk 0:02:48]}  Ne5 {[%clk 0:02:56]} 27. f4 {[%clk 0:01:53]}  Nc4 {[%clk 0:02:56]} 28. Bxc4 {[%clk 0:01:53]}  Rc7 {[%clk 0:02:56]} 29. Bd5 {[%clk 0:01:53]}  Rxc3 {[%clk 0:02:56]} 30. Bxa8 {[%clk 0:01:53]}  Rxe3 {[%clk 0:02:56]} 31. Ra1 {[%clk 0:01:53]} 1-0


[Site "http://www.Chess.com"]

[Event "FIDE World Rapid Chess Championship 2021"]
[White "Sychev, Klementy"]
[Black "Shoker, Samy"]
[WhiteFideId "4114060"]
[BlackFideId "627143"]
[WhiteElo "2461"]
[BlackElo "2550"]
[Result "1-0"]
[Round "13"]
[TimeControl "900+10"]
[Date "2021.12.28"]
[WhiteClock "0:09:19"]
[BlackClock "0:02:25"]

1. d4 {[%clk 0:15:00]}  g6 {[%clk 0:15:00]} 2. Nf3 {[%clk 0:15:00]}  Bg7 {[%clk 0:15:00]} 3. g3 {[%clk 0:15:00]}  Nf6 {[%clk 0:15:00]} 4. Bg2 {[%clk 0:15:00]}  O-O {[%clk 0:15:36]} 5. O-O {[%clk 0:15:50]}  d6 {[%clk 0:15:36]} 6. a4 {[%clk 0:15:50]}  a5 {[%clk 0:15:36]} 7. Nc3 {[%clk 0:15:50]}  Nc6 {[%clk 0:15:36]} 8. Re1 {[%clk 0:15:50]}  Nd7 {[%clk 0:15:36]} 9. e4 {[%clk 0:15:50]}  h6 {[%clk 0:15:04]} 10. Be3 {[%clk 0:14:20]}  e5 {[%clk 0:15:04]} 11. Qd2 {[%clk 0:14:20]}  Kh7 {[%clk 0:15:04]} 12. Rad1 {[%clk 0:14:20]}  exd4 {[%clk 0:15:04]} 13. Nxd4 {[%clk 0:14:20]}  Nce5 {[%clk 0:15:04]} 14. Qe2 {[%clk 0:14:20]}  Nf6 {[%clk 0:15:04]} 15. h3 {[%clk 0:14:20]}  Re8 {[%clk 0:15:04]} 16. f4 {[%clk 0:14:28]}  Ned7 {[%clk 0:13:54]} 17. Ndb5 {[%clk 0:14:28]}  Rb8 {[%clk 0:13:54]} 18. Qc4 {[%clk 0:14:28]}  d5 {[%clk 0:13:54]} 19. exd5 {[%clk 0:14:12]}  c6 {[%clk 0:12:11]} 20. dxc6 {[%clk 0:14:12]}  bxc6 {[%clk 0:12:11]} 21. Bxc6 {[%clk 0:14:12]}  Rxe3 {[%clk 0:12:11]} 22. Rxe3 {[%clk 0:14:12]}  Qb6 {[%clk 0:12:11]} 23. Re1 {[%clk 0:14:10]}  Nc5 {[%clk 0:10:13]} 24. Bg2 {[%clk 0:14:10]}  Be6 {[%clk 0:10:13]} 25. Qe2 {[%clk 0:14:10]}  h5 {[%clk 0:08:59]} 26. Kh1 {[%clk 0:13:22]}  Rd8 {[%clk 0:08:59]} 27. b3 {[%clk 0:13:22]}  Qb8 {[%clk 0:08:59]} 28. Qf2 {[%clk 0:13:22]}  Qc8 {[%clk 0:08:59]} 29. Kh2 {[%clk 0:13:22]}  h4 {[%clk 0:08:59]} 30. g4 {[%clk 0:13:20]}  Bxg4 {[%clk 0:07:19]} 31. Qxh4+ {[%clk 0:13:20]}  Bh5 {[%clk 0:07:19]} 32. Qf2 {[%clk 0:13:20]}  Bh6 {[%clk 0:07:19]} 33. Re7 {[%clk 0:13:20]}  Rd7 {[%clk 0:06:56]} 34. Rxd7 {[%clk 0:11:55]}  Ncxd7 {[%clk 0:06:56]} 35. Ne4 {[%clk 0:11:55]}  Qb8 {[%clk 0:06:56]} 36. Ned6 {[%clk 0:11:55]}  Kg8 {[%clk 0:05:49]} 37. Kh1 {[%clk 0:11:06]}  Bf8 {[%clk 0:05:49]} 38. Qd4 {[%clk 0:11:06]}  Qd8 {[%clk 0:05:49]} 39. Qc4 {[%clk 0:11:05]}  g5 {[%clk 0:03:42]} 40. fxg5 {[%clk 0:11:05]}  Nh7 {[%clk 0:03:42]} 41. h4 {[%clk 0:11:05]}  Qb6 {[%clk 0:03:42]} 42. Qf4 {[%clk 0:11:05]}  Qc5 {[%clk 0:03:42]} 43. c4 {[%clk 0:11:05]}  Bg6 {[%clk 0:03:42]} 44. Bd5 {[%clk 0:10:24]}  Qb4 {[%clk 0:02:56]} 45. Rf1 {[%clk 0:10:24]}  Qxb3 {[%clk 0:02:56]} 46. Bxf7+ {[%clk 0:10:24]}  Bxf7 {[%clk 0:02:56]} 47. Qxf7+ {[%clk 0:10:24]}  Kh8 {[%clk 0:02:56]} 48. Qf3 {[%clk 0:10:24]}  Qa2 {[%clk 0:02:25]} 49. Nf7+ {[%clk 0:09:19]}  Kg8 {[%clk 0:02:25]} 50. Qd5 {[%clk 0:09:19]}  Nb6 {[%clk 0:02:25]} 51. Nh6+ {[%clk 0:09:19]}  Kh8 {[%clk 0:02:25]} 52. Qg8# {[%clk 0:09:19]} 1-0


[Site "http://www.Chess.com"]

[Event "FIDE World Rapid Chess Championship 2021"]
[White "Bartel, Mateusz"]
[Black "Erigaisi, Arjun"]
[WhiteFideId "1112635"]
[BlackFideId "35009192"]
[WhiteElo "2543"]
[BlackElo "2397"]
[Result "1/2-1/2"]
[Round "13"]
[TimeControl "900+10"]
[Date "2021.12.28"]
[WhiteClock "0:01:48"]
[BlackClock "0:01:23"]

1. e4 {[%clk 0:15:00]}  c5 {[%clk 0:15:00]} 2. Nc3 {[%clk 0:15:00]}  e6 {[%clk 0:15:00]} 3. Nf3 {[%clk 0:15:00]}  a6 {[%clk 0:15:00]} 4. d4 {[%clk 0:15:00]}  cxd4 {[%clk 0:15:55]} 5. Nxd4 {[%clk 0:15:20]}  Qc7 {[%clk 0:15:55]} 6. f4 {[%clk 0:15:20]}  d6 {[%clk 0:15:55]} 7. Bd3 {[%clk 0:15:20]}  Nf6 {[%clk 0:15:55]} 8. Be3 {[%clk 0:15:20]}  Nbd7 {[%clk 0:15:55]} 9. g4 {[%clk 0:13:17]}  Nc5 {[%clk 0:15:49]} 10. g5 {[%clk 0:13:17]}  Nfd7 {[%clk 0:15:49]} 11. a4 {[%clk 0:13:17]}  b6 {[%clk 0:15:49]} 12. Be2 {[%clk 0:11:58]}  Bb7 {[%clk 0:15:18]} 13. Bf3 {[%clk 0:11:58]}  Rc8 {[%clk 0:15:18]} 14. O-O {[%clk 0:11:58]}  e5 {[%clk 0:13:16]} 15. Nd5 {[%clk 0:11:41]}  Qd8 {[%clk 0:12:10]} 16. Ne2 {[%clk 0:10:59]}  Be7 {[%clk 0:10:15]} 17. Nxe7 {[%clk 0:08:02]}  Qxe7 {[%clk 0:08:38]} 18. Ng3 {[%clk 0:08:02]}  g6 {[%clk 0:08:38]} 19. f5 {[%clk 0:08:02]}  a5 {[%clk 0:07:21]} 20. f6 {[%clk 0:07:47]}  Qf8 {[%clk 0:07:21]} 21. Rf2 {[%clk 0:07:47]}  Kd8 {[%clk 0:07:21]} 22. Rd2 {[%clk 0:07:43]}  Kc7 {[%clk 0:05:43]} 23. c3 {[%clk 0:07:43]}  h6 {[%clk 0:05:43]} 24. b4 {[%clk 0:07:43]}  Ne6 {[%clk 0:05:43]} 25. gxh6 {[%clk 0:06:21]}  Nf4 {[%clk 0:05:27]} 26. bxa5 {[%clk 0:06:21]}  bxa5 {[%clk 0:05:27]} 27. Rb1 {[%clk 0:06:21]}  Bc6 {[%clk 0:05:27]} 28. Bg4 {[%clk 0:04:39]}  Qxh6 {[%clk 0:03:46]} 29. Kf1 {[%clk 0:03:47]}  Rhd8 {[%clk 0:01:52]} 30. h3 {[%clk 0:03:47]}  Qh4 {[%clk 0:00:19]} 31. Rxd6 {[%clk 0:03:47]}  Qxg3 {[%clk 0:00:19]} 32. Rxc6+ {[%clk 0:03:47]}  Kxc6 {[%clk 0:00:19]} 33. Bxd7+ {[%clk 0:03:47]}  Rxd7 {[%clk 0:00:19]} 34. Rb6+ {[%clk 0:03:47]}  Kc7 {[%clk 0:00:19]} 35. Rb7+ {[%clk 0:03:47]}  Kxb7 {[%clk 0:00:19]} 36. Qxd7+ {[%clk 0:03:47]}  Rc7 {[%clk 0:00:19]} 37. Qb5+ {[%clk 0:03:47]}  Kc8 {[%clk 0:00:19]} 38. Qe8+ {[%clk 0:03:47]}  Kb7 {[%clk 0:00:19]} 39. Qb5+ {[%clk 0:01:48]}  Kc8 {[%clk 0:01:23]} 40. Qe8+ {[%clk 0:01:48]} 1/2-1/2


[Site "http://www.Chess.com"]